bitfinex-derivatives/quotes_BTCF0:USTF0_20251228
["timestamp","ask_amount","ask_price","bid_price","bid_amount"]
[1766919143304,0.0113844,87910.0,87894.0,0.0113863]
[1766919152308,0.0258496,87909.0,87894.0,0.0113863]
[1766919152508,0.0113844,87910.0,87894.0,0.0113863]
[1766919152708,0.02584938,87909.0,87894.0,0.0113863]
[1766919152909,0.0113844,87910.0,87894.0,0.0113863]
[1766919153207,0.02584687,87909.0,87894.0,0.0113863]
[1766919153408,0.0113844,87910.0,87894.0,0.0113863]
[1766919153600,0.02584673,87909.0,87894.0,0.0113863]
[1766919153800,0.0113844,87910.0,87894.0,0.0113863]
[1766919154008,0.02584673,87909.0,87894.0,0.0113863]
[1766919154209,0.0113844,87910.0,87894.0,0.0113863]
[1766919154414,0.02584656,87909.0,87894.0,0.0113863]
[1766919154601,0.0113844,87910.0,87894.0,0.0113863]
[1766919154800,0.02584648,87909.0,87894.0,0.0113863]
[1766919155001,0.0113844,87910.0,87894.0,0.0113863]
[1766919155301,0.02584645,87909.0,87894.0,0.0113863]
[1766919155508,0.0113844,87910.0,87894.0,0.0113863]
[1766919155808,0.02584632,87909.0,87894.0,0.0113863]
[1766919156000,0.0113844,87910.0,87894.0,0.0113863]
[1766919156201,0.02584631,87909.0,87894.0,0.0113863]
[1766919156397,0.0113844,87910.0,87894.0,0.0113863]
[1766919156609,0.02584621,87909.0,87894.0,0.0113863]
[1766919156812,0.0113844,87910.0,87894.0,0.0113863]
[1766919157013,0.02584618,87909.0,87894.0,0.0113863]
[1766919157212,0.0113844,87910.0,87894.0,0.0113863]
[1766919157414,0.02584617,87909.0,87894.0,0.0113863]
[1766919157714,0.0113844,87910.0,87894.0,0.0113863]
[1766919157913,0.02584567,87909.0,87894.0,0.0113863]
[1766919158214,0.0113844,87910.0,87894.0,0.0113863]
[1766919158401,0.02584567,87909.0,87894.0,0.0113863]
[1766919158600,0.0113844,87910.0,87894.0,0.0113863]
[1766919158804,0.0258464,87909.0,87894.0,0.0113863]
[1766919159002,0.0113844,87910.0,87894.0,0.0113863]
[1766919159305,0.02584634,87909.0,87894.0,0.0113863]
[1766919159507,0.0113844,87910.0,87894.0,0.0113863]
[1766919159706,0.02584633,87909.0,87894.0,0.0113863]
[1766919159907,0.0113844,87910.0,87894.0,0.0113863]
[1766919160104,0.02584632,87909.0,87894.0,0.0113863]
[1766919160313,0.0113844,87910.0,87894.0,0.0113863]
[1766919160512,0.02584636,87909.0,87894.0,0.0113863]
[1766919160705,0.0113844,87910.0,87894.0,0.0113863]
[1766919160908,0.02584464,87909.0,87894.0,0.0113863]
[1766919161118,0.0113844,87910.0,87894.0,0.0113863]
[1766919161417,0.02584331,87909.0,87894.0,0.0113863]
[1766919161617,0.0113844,87910.0,87894.0,0.0113863]
[1766919161821,0.0258435,87909.0,87894.0,0.0113863]
[1766919162121,0.0113844,87910.0,87894.0,0.0113863]
[1766919162311,0.02584352,87909.0,87894.0,0.0113863]
[1766919162606,0.0113844,87910.0,87894.0,0.0113863]
[1766919162805,0.02584359,87909.0,87894.0,0.0113863]
[1766919163106,0.0113844,87910.0,87894.0,0.0113863]
[1766919163308,0.02582077,87909.0,87894.0,0.0113863]
[1766919163510,0.0113844,87910.0,87894.0,0.0113863]
[1766919163706,0.02582086,87909.0,87894.0,0.0113863]
[1766919163911,0.0113844,87910.0,87894.0,0.0113863]
[1766919164116,0.02582082,87909.0,87894.0,0.0113863]
[1766919164317,0.0113844,87910.0,87894.0,0.0113863]
[1766919164520,0.02582092,87909.0,87894.0,0.0113863]
[1766919164723,0.0113844,87910.0,87894.0,0.0113863]
[1766919164915,0.02582092,87909.0,87894.0,0.0113863]
[1766919165123,0.0113844,87910.0,87894.0,0.0113863]
[1766919165316,0.02582092,87909.0,87894.0,0.0113863]
[1766919165518,0.0113844,87910.0,87894.0,0.0113863]
[1766919167125,0.02582133,87909.0,87894.0,0.0113863]
[1766919167328,0.02582133,87908.0,87894.0,0.0113863]
[1766919167518,0.02582133,87907.0,87894.0,0.0113863]
[1766919167818,0.02582133,87906.0,87894.0,0.0113863]
[1766919168015,0.02582133,87905.0,87894.0,0.0113863]
[1766919168219,0.0113844,87910.0,87894.0,0.0113863]
[1766919168517,0.0258218,87909.0,87894.0,0.0113863]
[1766919168718,0.0258218,87908.0,87894.0,0.0113863]
[1766919168919,0.0258218,87907.0,87894.0,0.0113863]
[1766919169218,0.0258218,87906.0,87894.0,0.0113863]
[1766919169419,0.0258218,87905.0,87894.0,0.0113863]
[1766919169718,0.0113844,87910.0,87894.0,0.0113863]
[1766919169919,0.0258219,87909.0,87894.0,0.0113863]
[1766919170119,0.0258219,87908.0,87894.0,0.0113863]
[1766919170320,0.0258219,87907.0,87894.0,0.0113863]
[1766919170520,0.0258219,87906.0,87894.0,0.0113863]
[1766919170816,0.0258219,87905.0,87894.0,0.0113863]
[1766919171021,0.0113844,87910.0,87894.0,0.0113863]
[1766919171230,0.02582204,87909.0,87894.0,0.0113863]
[1766919171418,0.02582204,87908.0,87894.0,0.0113863]
[1766919171623,0.02582204,87907.0,87894.0,0.0113863]
[1766919171832,0.02582204,87906.0,87894.0,0.0113863]
[1766919172031,0.02582204,87905.0,87894.0,0.0113863]
[1766919172329,0.0113844,87910.0,87894.0,0.0113863]
[1766919172520,0.02582306,87909.0,87894.0,0.0113863]
[1766919172722,0.02582306,87908.0,87894.0,0.0113863]
[1766919172924,0.02582306,87907.0,87894.0,0.0113863]
[1766919173120,0.02582306,87906.0,87894.0,0.0113863]
[1766919173320,0.02582306,87905.0,87894.0,0.0113863]
[1766919173530,0.0113844,87910.0,87894.0,0.0113863]
[1766919173732,0.02582464,87909.0,87894.0,0.0113863]
[1766919173921,0.02582464,87908.0,87894.0,0.0113863]
[1766919174120,0.02582464,87907.0,87894.0,0.0113863]
[1766919174333,0.02582464,87906.0,87894.0,0.0113863]
[1766919174533,0.02582464,87905.0,87894.0,0.0113863]
[1766919174734,0.0113844,87910.0,87894.0,0.0113863]
[1766919174936,0.02582469,87909.0,87894.0,0.0113863]
[1766919175234,0.02582469,87908.0,87894.0,0.0113863]
[1766919175432,0.02582469,87907.0,87894.0,0.0113863]
[1766919175634,0.02582469,87906.0,87894.0,0.0113863]
[1766919175835,0.02582469,87905.0,87894.0,0.0113863]
[1766919176035,0.02582469,87904.0,87894.0,0.0113863]
[1766919176334,0.0113844,87910.0,87894.0,0.0113863]
[1766919176531,0.0258281,87909.0,87894.0,0.0113863]
[1766919176834,0.0258281,87908.0,87894.0,0.0113863]
[1766919177038,0.0258281,87907.0,87894.0,0.0113863]
[1766919177235,0.0113844,87910.0,87894.0,0.0113863]
[1766919177435,0.02582744,87909.0,87894.0,0.0113863]
[1766919177635,0.0113844,87910.0,87894.0,0.0113863]
[1766919177837,0.02582747,87909.0,87894.0,0.0113863]
[1766919178038,0.0113844,87910.0,87894.0,0.0113863]
[1766919178238,0.02582764,87909.0,87894.0,0.0113863]
[1766919178439,0.0113844,87910.0,87894.0,0.0113863]
[1766919178638,0.02582762,87909.0,87894.0,0.0113863]
[1766919178838,0.0113844,87910.0,87894.0,0.0113863]
[1766919179040,0.02582763,87909.0,87894.0,0.0113863]
[1766919179341,0.0113844,87910.0,87894.0,0.0113863]
[1766919179542,0.02582762,87909.0,87894.0,0.0113863]
[1766919179839,0.0113844,87910.0,87894.0,0.0113863]
[1766919180040,0.02582763,87909.0,87894.0,0.0113863]
[1766919180240,0.0113844,87910.0,87894.0,0.0113863]
[1766919180443,0.02582762,87909.0,87894.0,0.0113863]
[1766919180641,0.0113844,87910.0,87894.0,0.0113863]
[1766919180836,0.02582761,87909.0,87894.0,0.0113863]
[1766919181035,0.0113844,87910.0,87894.0,0.0113863]
[1766919181243,0.02582762,87909.0,87894.0,0.0113863]
[1766919181441,0.0113844,87910.0,87894.0,0.0113863]
[1766919181641,0.02582768,87909.0,87894.0,0.0113863]
[1766919181841,0.0113844,87910.0,87894.0,0.0113863]
[1766919182043,0.02582793,87909.0,87894.0,0.0113863]
[1766919182241,0.0113844,87910.0,87894.0,0.0113863]
[1766919182442,0.0258279,87909.0,87894.0,0.0113863]
[1766919182643,0.0113844,87910.0,87894.0,0.0113863]
[1766919182841,0.02582789,87909.0,87894.0,0.0113863]
[1766919183043,0.0113844,87910.0,87894.0,0.0113863]
[1766919183244,0.02582789,87909.0,87894.0,0.0113863]
[1766919183543,0.0113844,87910.0,87892.0,0.0968]
[1766919183841,0.02582789,87909.0,87893.0,0.0113865]
[1766919184042,0.0113844,87910.0,87893.0,0.0113865]
[1766919184244,0.02582788,87909.0,87893.0,0.0113865]
[1766919184440,0.0113844,87910.0,87893.0,0.0113865]
[1766919184634,0.0113849,87906.0,87892.0,0.0968]
[1766919184844,0.0113856,87901.0,87892.0,0.1168]
[1766919186046,0.0113856,87901.0,87892.0,0.02]
[1766919186244,0.0113856,87901.0,87892.0,0.05696]
[1766919186548,0.0113852,87904.0,87892.0,0.05696]
[1766919187139,0.0113855,87902.0,87892.0,0.05696]
[1766919188149,0.0113855,87902.0,87890.0,0.05696]
[1766919189444,0.0113857,87899.0,87890.0,0.05696]
[1766919192645,0.0113861,87897.0,87890.0,0.05696]
[1766919192950,0.0113861,87897.0,87888.0,0.09676]
[1766919209474,0.0113857,87900.0,87888.0,0.09676]
[1766919212484,0.0113859,87898.0,87886.0,0.05696]
[1766919220681,0.1098448,87906.0,87883.0,0.00017067]
[1766919220879,0.02582167,87905.0,87884.0,0.15372]
[1766919221075,0.02582167,87904.0,87884.0,0.15372]
[1766919221275,0.02582167,87903.0,87884.0,0.15372]
[1766919221480,0.02582167,87902.0,87884.0,0.15372]
[1766919221681,0.10984391,87913.0,87884.0,0.15372]
[1766919221872,0.0113865,87894.0,87884.0,0.15372]
[1766919230693,0.0113861,87897.0,87884.0,0.15372]
[1766919231393,0.01308478,87906.0,87884.0,0.15372]
[1766919231695,0.0113858,87899.0,87884.0,0.15372]
[1766919243098,0.09676,87913.0,87884.0,0.15372]
[1766919243290,0.02578399,87912.0,87884.0,0.15372]
[1766919243493,0.02578399,87911.0,87888.0,0.0113871]
[1766919243690,0.0113852,87904.0,87889.0,0.05696]
[1766919247103,0.0113852,87904.0,87890.0,0.09676]
[1766919247800,0.0113848,87907.0,87890.0,0.1081468]
[1766919248006,0.02578822,87906.0,87890.0,0.1081468]
[1766919248208,0.0113848,87907.0,87890.0,0.1081468]
[1766919248397,0.02578777,87906.0,87890.0,0.1081468]
[1766919248597,0.0113848,87907.0,87890.0,0.1081468]
[1766919248901,0.02578904,87906.0,87890.0,0.1081468]
[1766919249097,0.0113848,87907.0,87890.0,0.1081468]
[1766919249307,0.011385,87905.0,87890.0,0.1081468]
[1766919252110,0.011385,87905.0,87890.0,0.09676]
[1766919253512,0.0113853,87903.0,87890.0,0.09676]
[1766919257112,0.02579034,87902.0,87890.0,0.09676]
[1766919257306,0.02579034,87901.0,87891.0,0.05696]
[1766919257507,0.0113853,87903.0,87891.0,0.15372]
[1766919257708,0.02579013,87902.0,87891.0,0.15372]
[1766919258011,0.02579013,87901.0,87891.0,0.15372]
[1766919258213,0.0113853,87903.0,87891.0,0.15372]
[1766919258414,0.0113855,87901.0,87891.0,0.15372]
[1766919264916,0.0053855,87901.0,87891.0,0.15372]
[1766919265116,0.0113841,87912.0,87891.0,0.15372]
[1766919265310,0.02578726,87911.0,87891.0,0.15372]
[1766919265510,0.02578726,87910.0,87891.0,0.15372]
[1766919265709,0.02578726,87909.0,87891.0,0.15372]
[1766919265914,0.02578726,87908.0,87891.0,0.15372]
[1766919266113,0.02578726,87907.0,87891.0,0.15372]
[1766919266317,0.0113856,87901.0,87891.0,0.15372]
[1766919270427,0.0113858,87899.0,87891.0,0.15372]
[1766919275426,0.06136505,87922.0,87891.0,0.15372]
[1766919275629,0.0113842,87912.0,87891.0,0.1951068]
[1766919275831,0.00227473,87923.0,87891.0,0.1951068]
[1766919276027,0.0113835,87917.0,87894.0,0.0113863]
[1766919276233,0.02580003,87916.0,87894.0,0.0413863]
[1766919276427,0.0113835,87917.0,87894.0,0.0413863]
[1766919276623,0.0113837,87915.0,87894.0,0.0413863]
[1766919282028,0.0113837,87915.0,87894.0,0.03]
[1766919282226,0.0113841,87912.0,87894.0,0.03]
[1766919283840,0.0113845,87909.0,87894.0,0.03]
[1766919288544,0.00227473,87923.0,87894.0,0.03]
[1766919288735,0.0113836,87916.0,87895.0,0.15372]
[1766919288948,0.0113852,87904.0,87895.0,0.15372]
[1766919294548,0.0113836,87916.0,87895.0,0.15372]
[1766919294750,0.011385,87905.0,87895.0,0.15372]
[1766919295148,0.011385,87905.0,87895.0,0.16680355]
[1766919300369,0.0113836,87916.0,87895.0,0.16680355]
[1766919300564,0.02552896,87915.0,87895.0,0.15372]
[1766919300766,0.02552896,87914.0,87895.0,0.15372]
[1766919300965,0.0113836,87916.0,87895.0,0.15372]
[1766919301265,0.02553118,87915.0,87895.0,0.15372]
[1766919301465,0.02553118,87914.0,87895.0,0.15372]
[1766919301666,0.0113836,87916.0,87895.0,0.15372]
[1766919301856,0.02553305,87915.0,87895.0,0.15372]
[1766919302056,0.02553305,87914.0,87895.0,0.15372]
[1766919302267,0.0113847,87908.0,87895.0,0.15372]
[1766919305958,0.0113849,87906.0,87895.0,0.15372]
[1766919306471,0.0113833,87918.0,87887.0,0.0113872]
[1766919306770,0.011385,87905.0,87889.0,0.011387]
[1766919306962,0.0113846,87908.0,87891.0,0.0113867]
[1766919307163,0.02554429,87907.0,87891.0,0.0113867]
[1766919307363,0.02554429,87906.0,87891.0,0.0113867]
[1766919307563,0.0113846,87908.0,87891.0,0.0113867]
[1766919307764,0.02554361,87907.0,87891.0,0.0113867]
[1766919307963,0.02554361,87906.0,87891.0,0.0113867]
[1766919308164,0.0113846,87908.0,87891.0,0.0113867]
[1766919308466,0.02554371,87907.0,87891.0,0.0113867]
[1766919308663,0.02554371,87906.0,87891.0,0.0113867]
[1766919308870,0.0113846,87908.0,87891.0,0.0113867]
[1766919309072,0.02554302,87907.0,87891.0,0.0113867]
[1766919309262,0.02554302,87906.0,87891.0,0.0113867]
[1766919309462,0.0113846,87908.0,87891.0,0.0113867]
[1766919309662,0.02554265,87907.0,87891.0,0.0113867]
[1766919309963,0.02554265,87906.0,87891.0,0.0113867]
[1766919310261,0.0113846,87908.0,87891.0,0.0113867]
[1766919310462,0.02554241,87907.0,87891.0,0.0113867]
[1766919310663,0.02554241,87906.0,87891.0,0.0113867]
[1766919310867,0.0113846,87908.0,87891.0,0.0113867]
[1766919311065,0.02554241,87907.0,87891.0,0.0113867]
[1766919311263,0.02554241,87906.0,87891.0,0.0113867]
[1766919311559,0.0113846,87908.0,87891.0,0.0113867]
[1766919311764,0.02554217,87907.0,87891.0,0.0113867]
[1766919311962,0.02554217,87906.0,87891.0,0.0113867]
[1766919312173,0.0113846,87908.0,87891.0,0.0113867]
[1766919312371,0.02554246,87907.0,87891.0,0.0113867]
[1766919312572,0.02554246,87906.0,87891.0,0.0113867]
[1766919312773,0.0113846,87908.0,87891.0,0.0113867]
[1766919312972,0.02554233,87907.0,87891.0,0.0113867]
[1766919313174,0.02554233,87906.0,87891.0,0.0113867]
[1766919313374,0.0113846,87908.0,87891.0,0.0113867]
[1766919313578,0.02559076,87907.0,87891.0,0.0113867]
[1766919313766,0.02559076,87906.0,87891.0,0.0113867]
[1766919313961,0.0113846,87908.0,87891.0,0.0113867]
[1766919314165,0.02559061,87907.0,87891.0,0.0113867]
[1766919314371,0.03697551,87906.0,87888.0,0.1651071]
[1766919314669,0.0113849,87906.0,87888.0,0.1951071]
[1766919318073,0.0113849,87906.0,87890.0,0.0113869]
[1766919320784,0.0113845,87909.0,87890.0,0.0113869]
[1766919321280,0.0113845,87909.0,87891.0,0.15372]
[1766919322976,0.0113848,87907.0,87891.0,0.15372]
[1766919331490,0.0113855,87902.0,87887.0,0.0113872]
[1766919331790,0.0113855,87902.0,87888.0,0.15372]
[1766919331991,0.0113855,87902.0,87888.0,0.18372]
[1766919333780,0.0113858,87899.0,87888.0,0.18372]
[1766919336791,0.0113858,87899.0,87888.0,0.03]
[1766919336994,0.0113858,87899.0,87889.0,0.15372]
[1766919337195,0.0113858,87899.0,87889.0,0.16680445]
[1766919339591,0.0113853,87903.0,87889.0,0.16680445]
[1766919339789,0.0113853,87903.0,87889.0,0.15372]
[1766919343700,0.0113847,87907.0,87890.0,0.0113869]
[1766919345403,0.0113847,87907.0,87892.0,0.0113867]
[1766919345596,0.0113847,87907.0,87893.0,0.09676]
[1766919346998,0.0113847,87907.0,87892.0,0.0113867]
[1766919347191,0.0113847,87907.0,87894.0,0.05696]
[1766919348800,0.09676,87918.0,87894.0,0.05696]
[1766919348997,0.0113844,87910.0,87894.0,0.05696]
[1766919349197,0.0255796,87909.0,87894.0,0.05696]
[1766919350006,0.0113838,87914.0,87897.0,0.0113859]
[1766919350203,0.02557954,87913.0,87897.0,0.0113859]
[1766919350405,0.02557954,87912.0,87897.0,0.0113859]
[1766919350705,0.02557954,87911.0,87897.0,0.0113859]
[1766919350905,0.02557954,87910.0,87897.0,0.0113859]
[1766919351104,0.02557954,87909.0,87897.0,0.0113859]
[1766919351304,0.0113838,87914.0,87897.0,0.0113859]
[1766919351506,0.02557912,87913.0,87897.0,0.0113859]
[1766919351807,0.02557912,87912.0,87897.0,0.0113859]
[1766919351996,0.0113838,87914.0,87897.0,0.0113859]
[1766919351997,0.02557912,87911.0,87897.0,0.0113859]
[1766919352198,0.02557912,87910.0,87897.0,0.0113859]
[1766919352505,0.02557874,87909.0,87897.0,0.0113859]
[1766919352805,0.0113838,87914.0,87897.0,0.0113859]
[1766919353006,0.0113841,87912.0,87897.0,0.0113859]
[1766919353207,0.02557874,87911.0,87897.0,0.0113859]
[1766919353407,0.02557874,87910.0,87897.0,0.0113859]
[1766919353608,0.02557874,87909.0,87897.0,0.0113859]
[1766919353800,0.0113841,87912.0,87897.0,0.0113859]
[1766919354000,0.02557846,87911.0,87897.0,0.0113859]
[1766919354193,0.02557846,87910.0,87897.0,0.0113859]
[1766919354398,0.02557846,87909.0,87897.0,0.0113859]
[1766919354599,0.0113841,87912.0,87897.0,0.0113859]
[1766919354799,0.02557822,87911.0,87897.0,0.0113859]
[1766919355102,0.02557822,87910.0,87897.0,0.0113859]
[1766919355300,0.02557822,87909.0,87897.0,0.0113859]
[1766919355500,0.0113841,87912.0,87897.0,0.0113859]
[1766919355710,0.025578,87911.0,87897.0,0.0113859]
[1766919355910,0.025578,87910.0,87897.0,0.0113859]
[1766919356101,0.025578,87909.0,87897.0,0.0113859]
[1766919356301,0.0113841,87912.0,87897.0,0.0113859]
[1766919356502,0.02557779,87911.0,87897.0,0.0113859]
[1766919356703,0.02557779,87910.0,87897.0,0.0113859]
[1766919356903,0.02557779,87909.0,87897.0,0.0113859]
[1766919357103,0.0113841,87912.0,87897.0,0.0113859]
[1766919359413,0.0113841,87912.0,87894.0,0.05696]
[1766919360013,0.0113844,87910.0,87894.0,0.05696]
[1766919361212,0.0113846,87908.0,87894.0,0.05696]
[1766919364014,0.0113849,87906.0,87894.0,0.05696]
[1766919364210,0.0113852,87904.0,87894.0,0.05696]
[1766919365521,0.0113854,87902.0,87894.0,0.05696]
[1766919365716,0.0113856,87901.0,87894.0,0.05696]
[1766919367523,0.0113856,87901.0,87895.0,0.15372]
[1766919368521,0.0113852,87904.0,87895.0,0.15372]
[1766919371422,0.0113852,87904.0,87896.0,0.05696]
[1766919376338,0.0113852,87904.0,87890.0,0.0130838]
[1766919376537,0.0113852,87904.0,87891.0,0.15372]
[1766919381342,0.0113852,87904.0,87888.0,0.02447083]
[1766919381542,0.0113852,87904.0,87889.0,0.15372]
[1766919386353,0.0113852,87904.0,87888.0,0.0113871]
[1766919386647,0.0113852,87904.0,87889.0,0.15372]
[1766919391353,0.0113852,87904.0,87888.0,0.0113871]
[1766919391650,0.0113852,87904.0,87889.0,0.15372]
[1766919396550,0.0113852,87904.0,87890.0,0.15372]
[1766919401360,0.0113852,87904.0,87888.0,0.0113871]
[1766919401542,0.0113852,87904.0,87889.0,0.15372]
[1766919404257,0.0113848,87907.0,87890.0,0.0113869]
[1766919404457,0.02553154,87906.0,87890.0,0.0113869]
[1766919404658,0.0113848,87907.0,87890.0,0.0113869]
[1766919404849,0.02553155,87906.0,87890.0,0.0113869]
[1766919405047,0.0113848,87907.0,87890.0,0.0113869]
[1766919405256,0.02553154,87906.0,87890.0,0.0113869]
[1766919405457,0.0113848,87907.0,87890.0,0.0113869]
[1766919405658,0.02553155,87906.0,87890.0,0.0113869]
[1766919405959,0.0113848,87907.0,87890.0,0.0113869]
[1766919406148,0.02553155,87906.0,87890.0,0.0113869]
[1766919406350,0.0113848,87907.0,87890.0,0.0113869]
[1766919406657,0.02553163,87906.0,87891.0,0.15372]
[1766919406956,0.0113848,87907.0,87891.0,0.15372]
[1766919407157,0.011385,87905.0,87891.0,0.15372]
[1766919410558,0.09676,87918.0,87891.0,0.1751068]
[1766919410751,0.0113846,87909.0,87891.0,0.1751068]
[1766919411847,0.0113846,87909.0,87892.0,0.15372]
[1766919412560,0.0113846,87909.0,87893.0,0.0113865]
[1766919416482,0.0113846,87909.0,87894.0,0.15372]
[1766919417661,0.09676,87918.0,87894.0,0.15372]
[1766919417857,0.0113841,87912.0,87895.0,0.0113862]
[1766919418056,0.02552933,87911.0,87895.0,0.0113862]
[1766919418456,0.0113843,87910.0,87895.0,0.0113862]
[1766919419965,0.0113843,87910.0,87894.0,0.15372]
[1766919420264,0.0113846,87908.0,87894.0,0.15372]
[1766919421370,0.0113846,87908.0,87892.0,0.0113866]
[1766919421666,0.09676,87918.0,87895.0,0.15372]
[1766919421867,0.0255301,87917.0,87895.0,0.15372]
[1766919422066,0.0255301,87916.0,87895.0,0.15372]
[1766919422268,0.0255301,87915.0,87895.0,0.15372]
[1766919422469,0.0255301,87914.0,87895.0,0.15372]
[1766919422764,0.0053842,87912.0,87896.0,0.0113861]
[1766919429072,0.0053842,87912.0,87895.0,0.15372]
[1766919429461,0.0113844,87910.0,87895.0,0.15372]
[1766919436776,0.0113844,87910.0,87895.0,0.1651062]
[1766919437176,0.02554168,87909.0,87895.0,0.1651062]
[1766919437378,0.02554168,87908.0,87895.0,0.1651062]
[1766919437570,0.0113844,87910.0,87895.0,0.1651062]
[1766919437868,0.02554202,87909.0,87895.0,0.1651062]
[1766919438070,0.02554202,87908.0,87895.0,0.1651062]
[1766919438271,0.0113844,87910.0,87895.0,0.1651062]
[1766919438473,0.02554266,87909.0,87895.0,0.1651062]
[1766919438776,0.0113847,87907.0,87895.0,0.15372]
[1766919445682,0.0113847,87907.0,87889.0,0.011387]
[1766919445982,0.0113847,87907.0,87890.0,0.15372]
[1766919447195,0.0113847,87907.0,87889.0,0.011387]
[1766919447396,0.0113847,87907.0,87890.0,0.15372]
[1766919449603,0.0113843,87910.0,87891.0,0.0113867]
[1766919449795,0.011384,87913.0,87893.0,0.0113865]
[1766919449995,0.0113842,87911.0,87893.0,0.0113865]
[1766919457015,0.0113839,87914.0,87895.0,0.0113862]
[1766919457214,0.02554553,87913.0,87895.0,0.0113862]
[1766919457414,0.02554553,87912.0,87895.0,0.0113862]
[1766919457608,0.02554553,87911.0,87895.0,0.0113862]
[1766919457804,0.0113839,87914.0,87895.0,0.0113862]
[1766919458007,0.02554556,87913.0,87895.0,0.0113862]
[1766919458215,0.02554556,87912.0,87897.0,0.0113859]
[1766919458411,0.02554556,87911.0,87898.0,0.05696]
[1766919458612,0.0113839,87914.0,87898.0,0.05696]
[1766919458914,0.02554548,87913.0,87899.0,0.09676]
[1766919459113,0.02554548,87912.0,87899.0,0.09676]
[1766919459413,0.02554548,87911.0,87899.0,0.09676]
[1766919459614,0.0113839,87914.0,87899.0,0.09676]
[1766919459814,0.02554555,87913.0,87899.0,0.09676]
[1766919460017,0.02554555,87912.0,87899.0,0.09676]
[1766919460208,0.02554555,87911.0,87899.0,0.09676]
[1766919460512,0.0113839,87914.0,87899.0,0.09676]
[1766919460701,0.02554545,87913.0,87899.0,0.09676]
[1766919460906,0.02554545,87912.0,87899.0,0.09676]
[1766919461105,0.02554545,87911.0,87899.0,0.09676]
[1766919461302,0.0113839,87914.0,87899.0,0.09676]
[1766919461507,0.02554534,87913.0,87899.0,0.09676]
[1766919461714,0.02554534,87912.0,87899.0,0.09676]
[1766919461916,0.02554534,87911.0,87899.0,0.09676]
[1766919462214,0.0113839,87914.0,87899.0,0.09676]
[1766919462414,0.02554532,87913.0,87899.0,0.09676]
[1766919462613,0.02554532,87912.0,87899.0,0.09676]
[1766919462815,0.02554532,87911.0,87899.0,0.09676]
[1766919463114,0.0113839,87914.0,87899.0,0.09676]
[1766919463318,0.02554523,87913.0,87899.0,0.09676]
[1766919463615,0.02554523,87912.0,87899.0,0.09676]
[1766919463816,0.02554523,87911.0,87899.0,0.09676]
[1766919464018,0.0113839,87914.0,87899.0,0.09676]
[1766919464218,0.02563053,87913.0,87899.0,0.09676]
[1766919464414,0.02563053,87912.0,87899.0,0.09676]
[1766919464615,0.02563053,87911.0,87899.0,0.09676]
[1766919464812,0.0113839,87914.0,87899.0,0.09676]
[1766919465010,0.02563047,87913.0,87899.0,0.09676]
[1766919465207,0.0113839,87914.0,87899.0,0.09676]
[1766919465208,0.02563047,87912.0,87899.0,0.09676]
[1766919465412,0.02563047,87911.0,87899.0,0.09676]
[1766919465619,0.0113839,87914.0,87899.0,0.09676]
[1766919465820,0.02563048,87913.0,87899.0,0.09676]
[1766919466019,0.02563048,87912.0,87899.0,0.09676]
[1766919466218,0.02563048,87911.0,87899.0,0.09676]
[1766919466419,0.0113839,87914.0,87899.0,0.09676]
[1766919466620,0.02562878,87913.0,87899.0,0.09676]
[1766919466821,0.02562878,87912.0,87899.0,0.09676]
[1766919467019,0.02562878,87911.0,87899.0,0.09676]
[1766919467220,0.0113839,87914.0,87899.0,0.09676]
[1766919467525,0.02562854,87913.0,87899.0,0.09676]
[1766919467821,0.02562854,87912.0,87899.0,0.09676]
[1766919468018,0.02562854,87911.0,87899.0,0.09676]
[1766919468217,0.0113839,87914.0,87899.0,0.09676]
[1766919468416,0.02562851,87913.0,87899.0,0.09676]
[1766919468621,0.02562851,87912.0,87899.0,0.09676]
[1766919468919,0.02562851,87911.0,87899.0,0.09676]
[1766919469120,0.0113839,87914.0,87899.0,0.09676]
[1766919469310,0.02562852,87913.0,87899.0,0.09676]
[1766919469512,0.02562852,87912.0,87899.0,0.09676]
[1766919469714,0.02562852,87911.0,87899.0,0.09676]
[1766919469914,0.0113839,87914.0,87899.0,0.09676]
[1766919470212,0.02562851,87913.0,87899.0,0.09676]
[1766919470411,0.02562851,87912.0,87899.0,0.09676]
[1766919470617,0.02562851,87911.0,87899.0,0.09676]
[1766919470915,0.0113839,87914.0,87899.0,0.09676]
[1766919471117,0.02562854,87913.0,87899.0,0.09676]
[1766919471412,0.02562854,87912.0,87899.0,0.09676]
[1766919471616,0.02562854,87911.0,87899.0,0.09676]
[1766919471818,0.0113839,87914.0,87899.0,0.09676]
[1766919472016,0.02562862,87913.0,87899.0,0.09676]
[1766919472225,0.02562862,87912.0,87899.0,0.09676]
[1766919472425,0.02562862,87911.0,87899.0,0.09676]
[1766919472627,0.0113839,87914.0,87899.0,0.09676]
[1766919472924,0.02562867,87913.0,87899.0,0.09676]
[1766919473127,0.02562867,87912.0,87899.0,0.09676]
[1766919473329,0.02562867,87911.0,87899.0,0.09676]
[1766919473525,0.0113841,87912.0,87899.0,0.09676]
[1766919473726,0.0256288,87911.0,87899.0,0.09676]
[1766919473928,0.0113841,87912.0,87899.0,0.09676]
[1766919474129,0.0256288,87911.0,87899.0,0.09676]
[1766919474325,0.0113841,87912.0,87899.0,0.09676]
[1766919474524,0.02562966,87911.0,87899.0,0.09676]
[1766919474724,0.0113841,87912.0,87899.0,0.09676]
[1766919474924,0.02562976,87911.0,87899.0,0.09676]
[1766919475124,0.0113841,87912.0,87899.0,0.09676]
[1766919475326,0.02562996,87911.0,87899.0,0.09676]
[1766919475624,0.0113841,87912.0,87899.0,0.09676]
[1766919475824,0.02563001,87911.0,87899.0,0.09676]
[1766919476119,0.0113841,87912.0,87899.0,0.09676]
[1766919476323,0.02563021,87911.0,87899.0,0.09676]
[1766919476523,0.0113841,87912.0,87899.0,0.09676]
[1766919476823,0.02563098,87911.0,87899.0,0.09676]
[1766919477023,0.0113841,87912.0,87899.0,0.09676]
[1766919477225,0.025631,87911.0,87899.0,0.09676]
[1766919477424,0.0113837,87915.0,87899.0,0.09676]
[1766919477621,0.02563158,87914.0,87899.0,0.09676]
[1766919477826,0.02563158,87913.0,87899.0,0.09676]
[1766919478028,0.02563158,87912.0,87899.0,0.09676]
[1766919478230,0.02563158,87911.0,87899.0,0.09676]
[1766919478533,0.09903473,87923.0,87899.0,0.09676]
[1766919478730,0.0113835,87917.0,87899.0,0.1081457]
[1766919478929,0.0256328,87916.0,87901.0,0.0113854]
[1766919482040,0.0113837,87915.0,87901.0,0.0113854]
[1766919482333,0.0256328,87914.0,87901.0,0.0113854]
[1766919482532,0.02542798,87913.0,87901.0,0.0113854]
[1766919482734,0.0113837,87915.0,87901.0,0.0113854]
[1766919482934,0.02542916,87914.0,87901.0,0.0113854]
[1766919483134,0.02542916,87913.0,87901.0,0.0113854]
[1766919483336,0.0113837,87915.0,87901.0,0.0113854]